bitfinex-derivatives/quotes_SOLF0:USTF0_20260104
["timestamp","ask_amount","ask_price","bid_price","bid_amount"]
[1767508914127,2.66018363,134.08,134.05,0.0010689]
[1767508916134,6.7159,134.07,134.05,0.0010689]
[1767508918633,6.7159,134.07,133.98,113.43113723]
[1767508918634,2.61029597,134.06,133.99,2.66413247]
[1767508918835,2.61029597,134.06,134.0,2.66413247]
[1767508919829,0.04905322,134.04,134.0,2.66413247]
[1767508920333,0.04905322,134.04,134.0,3.81706205]
[1767508920937,2.61029597,134.06,134.0,3.81706205]
[1767508921138,2.61029597,134.06,134.01,2.65856892]
[1767508921334,6.7159,134.07,134.01,2.65856892]
[1767508922041,0.04903441,134.05,134.03,0.04905322]
[1767508922335,2.80405572,134.05,133.99,2.65856892]
[1767508923440,0.04903441,134.05,133.99,2.65856892]
[1767508923640,0.04903441,134.05,134.01,2.65856892]
[1767508924438,0.04903441,134.05,134.01,3.8114985]
[1767508927843,0.04903441,134.05,134.01,2.65856892]
[1767508929839,2.75502131,134.04,133.98,18.57093723]
[1767508930031,2.75502131,134.03,133.98,18.57093723]
[1767508930236,0.05683456,134.02,133.98,18.57093723]
[1767508930532,2.75502131,134.01,133.98,18.52188401]
[1767508930731,104.5202,134.01,133.93,2.65856892]
[1767508931038,0.04872825,133.98,133.93,2.65856892]
[1767508931435,0.04872825,133.98,133.91,1.15292958]
[1767508931635,105.74465783,133.98,133.9,2.65856892]
[1767508931840,0.04872825,133.98,133.9,3.8114985]
[1767508932036,0.04872825,133.98,133.91,2.65856892]
[1767508932439,0.04872825,133.98,133.91,3.8114985]
[1767508932642,0.04872825,133.98,133.92,2.65856892]
[1767508934039,0.04872825,133.98,133.92,3.8114985]
[1767508934842,94.8786,134.02,133.95,2.65856892]
[1767508935041,6.7186,134.02,133.95,2.65856892]
[1767508935450,111.2154,134.04,133.96,1.15292958]
[1767508935746,111.2154,134.04,133.96,3.8114985]
[1767508936049,0.04846773,134.01,133.99,0.04776956]
[1767508936842,88.18,134.05,133.99,0.04776956]
[1767508937044,88.18,134.05,133.99,2.70633848]
[1767508938047,0.05675356,134.03,133.99,2.70633848]
[1767508942746,6.7168,134.06,133.99,2.70633848]
[1767508943848,192.6466,134.08,133.99,2.70633848]
[1767508943849,0.0505011,134.04,133.99,2.70633848]
[1767508944053,94.8956,134.08,133.99,2.65856892]
[1767508944255,5.68897975,134.07,133.99,2.65856892]
[1767508944449,6.7156,134.08,133.99,2.65856892]
[1767508945154,0.04727329,134.05,134.02,0.04913198]
[1767508955767,0.04727329,134.05,133.97,90.69796861]
[1767508955950,1.85276579,134.05,133.97,2.53796861]
[1767508956866,1.85276579,134.05,134.0,0.05617737]
[1767508957169,0.04727329,134.05,134.0,2.59414598]
[1767508961570,6.7176,134.04,134.0,2.59414598]
[1767508961773,0.04727329,134.05,134.0,2.59414598]
[1767508966373,6.7174,134.04,134.0,0.05617737]
[1767508966773,0.04727329,134.05,134.0,0.05617737]
[1767508967067,0.04727329,134.05,134.0,2.59414598]
[1767508969376,6.76427329,134.05,134.0,2.59414598]
[1767508971180,6.76427329,134.05,134.0,0.05617737]
[1767508971387,6.7175,134.04,134.0,0.05617737]
[1767508973191,6.7181,134.03,134.0,0.05617737]
[1767508973690,6.7187,134.02,134.0,0.00770964]
[1767508976188,6.7187,134.02,133.97,2.53796861]
[1767508977399,0.05309324,134.01,133.98,0.05054951]
[1767508980793,104.4716,134.07,133.98,2.73844728]
[1767508981098,5.70764048,134.06,133.98,2.68789777]
[1767508981293,5.70764048,134.05,133.98,2.68789777]
[1767508981493,6.7175,134.04,133.98,2.68789777]
[1767508981897,0.04868584,134.02,134.0,0.0544303]
[1767508983292,6.7167,134.06,134.0,2.74232807]
[1767508983488,5.70867907,134.05,134.0,2.74232807]
[1767508983692,5.70867907,134.04,134.0,2.74232807]
[1767508983997,6.7167,134.06,134.0,2.74232807]
[1767508984200,0.04985046,134.04,134.0,2.74232807]
[1767508993707,5.71058619,134.03,134.0,0.0544303]
[1767508994008,0.04985046,134.04,134.0,0.0544303]
[1767508994218,5.71031821,134.03,134.0,0.0544303]
[1767508994405,0.04985046,134.04,134.0,0.0544303]
[1767508994614,5.71063172,134.03,134.0,0.0544303]
[1767508994810,6.7181,134.03,134.0,0.0544303]
[1767508995614,5.71108908,134.02,134.0,0.0544303]
[1767508995810,6.7181,134.03,134.0,0.0544303]
[1767508996016,12.42928589,134.02,133.95,2.68789777]
[1767508996308,5.71068589,134.01,133.95,2.68789777]
[1767508996517,6.7186,134.02,133.95,2.68789777]
[1767508996713,5.70927043,134.01,133.95,2.68789777]
[1767508996918,6.7186,134.02,133.95,2.68789777]
[1767508997105,0.04859554,133.99,133.97,0.05105867]
[1767508997309,0.04859554,133.99,133.95,2.68789777]
[1767508998513,0.04859554,133.99,133.96,0.04708144]
[1767509000521,1.20526743,133.99,133.96,0.04708144]
[1767509001416,0.04859554,133.99,133.96,2.73497921]
[1767509001921,7.87537189,134.02,133.96,2.73497921]
[1767509002125,5.69906802,134.01,133.96,2.73497921]
[1767509002314,7.87537189,134.02,133.96,2.73497921]
[1767509003026,0.05732789,134.0,133.96,2.73497921]
[1767509003229,1.21399978,134.0,133.96,0.04708144]
[1767509003428,1.15667189,133.98,133.93,2.68789777]
[1767509004533,0.05001135,133.97,133.94,0.05255893]
[1767509006831,6.77111135,133.97,133.94,0.05255893]
[1767509007033,1.15667189,133.96,133.93,2.68789777]
[1767509007423,1.15667189,133.96,133.9,2.68789777]
[1767509008030,0.04865237,133.94,133.92,0.04438657]
[1767509008846,0.04865237,133.94,133.9,2.68789777]
[1767509009322,1.20532426,133.94,133.9,2.68789777]
[1767509009723,104.5275,134.0,133.9,4.18789777]
[1767509009933,104.5275,134.0,133.91,2.68789777]
[1767509009934,6.84173547,133.99,133.91,2.68789777]
[1767509010235,1.15667189,133.97,133.91,2.68789777]
[1767509010432,7.87777189,133.97,133.91,2.68789777]
[1767509010640,1.15667189,133.95,133.85,2.55456814]
[1767509010842,1.15667189,133.93,133.86,2.55456814]
[1767509011029,0.05591516,133.91,133.88,0.04865237]
[1767509011628,1.21258705,133.91,133.84,17.95493743]
[1767509011832,1.21258705,133.91,133.84,20.50950557]
[1767509012235,1.15667189,133.89,133.84,20.50950557]
[1767509012429,1.15667189,133.89,133.82,2.55456814]
[1767509012636,0.05480383,133.87,133.82,2.55456814]
[1767509012838,1.15667189,133.89,133.82,2.55456814]
[1767509013132,1.15667189,133.91,133.84,2.46710097]
[1767509013334,1.15667189,133.91,133.85,2.46710097]
[1767509013529,7.87977189,133.93,133.85,2.46710097]
[1767509013933,7.87977189,133.93,133.88,0.0541064]
[1767509014129,1.15667189,133.93,133.88,2.52120737]
[1767509014530,6.7221,133.95,133.88,2.52120737]
[1767509014730,6.7221,133.95,133.89,2.46710097]
[1767509015148,0.05122912,133.93,133.89,2.46710097]
[1767509016139,6.7221,133.95,133.89,2.46710097]
[1767509016340,6.721,133.97,133.9,2.46710097]
[1767509016941,1.15667189,133.96,133.88,2.46710097]
[1767509017147,105.71617189,133.96,133.88,2.46710097]
[1767509017342,0.05210313,133.93,133.91,0.0535935]
[1767509023149,0.05210313,133.93,133.86,2.46710097]
[1767509023942,1.15667189,133.92,133.84,2.46710097]
[1767509024143,0.0511385,133.89,133.87,0.05598379]
[1767509027252,6.7761385,133.89,133.87,0.05598379]
[1767509027643,0.0511385,133.89,133.87,0.05598379]
[1767509031353,104.5743,133.94,133.87,0.05598379]
[1767509031354,89.41667189,133.94,133.87,2.52308476]
[1767509031660,1.15667189,133.92,133.87,0.05598379]
[1767509032359,0.04854016,133.91,133.87,0.05598379]
[1767509032856,6.77254016,133.91,133.87,0.05598379]
[1767509033856,0.04854016,133.91,133.87,2.52308476]
[1767509034357,0.04854016,133.91,133.87,0.05598379]
[1767509035148,6.77264016,133.91,133.87,0.05598379]
[1767509036052,6.7246,133.9,133.87,0.05598379]
[1767509036954,0.04854016,133.91,133.87,2.52308476]
[1767509037156,1.15667189,133.89,133.83,2.46710097]
[1767509037360,0.04854016,133.91,133.83,2.46710097]
[1767509037361,1.15667189,133.91,133.83,2.46710097]
[1767509037558,7.88097189,133.91,133.83,2.46710097]
[1767509038059,7.88097189,133.91,133.84,2.46710097]
[1767509038262,0.04789571,133.89,133.86,0.05067343]
[1767509040859,0.04789571,133.89,133.86,2.65693723]
[1767509041061,7.87987189,133.93,133.86,2.65693723]
[1767509041365,1.15667189,133.91,133.86,0.05067343]
[1767509042162,6.77809382,133.9,133.86,0.05067343]
[1767509047872,6.726,133.87,133.8,2.6062638]
[1767509048065,6.726,133.87,133.81,2.6062638]
[1767509048963,0.04756845,133.85,133.81,2.6062638]
[1767509050768,0.04756845,133.85,133.82,0.05627136]
[1767509051365,1.20424034,133.85,133.78,18.79878336]
[1767509051966,5.68483265,133.84,133.78,18.79878336]
[1767509052171,6.7276,133.84,133.78,18.79878336]
[1767509052471,1.15667189,133.83,133.78,18.79878336]
[1767509052871,7.88477189,133.83,133.78,18.79878336]
[1767509053170,6.7281,133.83,133.78,18.79878336]
[1767509053367,7.88477189,133.83,133.78,18.79878336]
[1767509053572,0.05031663,133.82,133.78,18.79878336]
[1767509055277,1.15667189,133.87,133.79,2.6062638]
[1767509055476,88.28,133.88,133.8,2.6062638]
[1767509055777,88.28,133.88,133.81,2.6062638]
[1767509056371,88.28,133.88,133.83,0.04992902]
[1767509056372,0.04830545,133.86,133.83,0.04992902]
[1767509060875,0.04830545,133.86,133.78,107.07878336]
[1767509060876,6.7271,133.85,133.79,2.6062638]
[1767509062377,0.04830545,133.86,133.81,2.6062638]
[1767509062577,0.04965685,133.85,133.81,2.6062638]
[1767509064988,6.7252,133.89,133.81,2.6062638]
[1767509065782,0.05035258,133.86,133.84,0.05004446]
[1767509070581,6.7255,133.88,133.84,0.05004446]
[1767509071591,0.0537214,133.87,133.84,0.05004446]
[1767509080387,6.7798214,133.87,133.8,9.16057431]
[1767509080688,6.7798214,133.87,133.81,2.43127431]
[1767509081496,6.7798214,133.87,133.83,0.05035258]
[1767509086389,6.7265,133.86,133.83,0.05035258]
[1767509086891,104.5676,133.95,133.86,2.43127431]
[1767509087076,5.69801709,133.94,133.86,2.43127431]
[1767509087281,5.69801709,133.93,133.86,2.43127431]
[1767509087478,104.5676,133.95,133.86,2.43127431]
[1767509087683,5.69783461,133.94,133.86,2.43127431]
[1767509087993,0.05342722,133.91,133.89,0.05539724]
[1767509091091,6.7221,133.95,133.89,0.05539724]
[1767509092199,0.0556867,133.93,133.89,2.48667155]
[1767509092496,0.0556867,133.93,133.9,0.05346468]
[1767509093799,104.5481,133.97,133.91,2.43127431]
[1767509093985,5.68987965,133.96,133.9,0.05346468]
[1767509094188,104.5481,133.97,133.9,0.05346468]
[1767509094791,6.77009856,133.95,133.9,0.05346468]
[1767509095298,0.04789856,133.95,133.9,0.05346468]
[1767509096794,6.7226,133.94,133.9,0.05346468]
[1767509100403,6.7231,133.93,133.9,0.00556897]
[1767509101193,6.77019856,133.95,133.9,0.00556897]
[1767509101393,0.04789856,133.95,133.9,0.00556897]
[1767509101603,6.7231,133.93,133.9,0.00556897]
[1767509102612,6.77009856,133.95,133.9,0.00556897]
[1767509102810,0.04789856,133.95,133.9,2.6124898]
[1767509103705,88.26,134.0,133.9,2.6124898]
[1767509103907,5.68608075,133.99,133.9,2.60692083]
[1767509104204,5.68608075,133.99,133.92,2.60692083]
[1767509104205,6.7201,133.99,133.92,2.60692083]
[1767509104402,2.45355319,134.06,133.94,2.60692083]
[1767509104601,0.04993569,134.01,133.99,0.051017]
[1767509104796,2.45355319,134.03,133.96,2.60692083]
[1767509105110,2.45355319,134.05,133.96,2.60692083]
[1767509105896,0.04949909,134.02,133.99,0.04761659]
[1767509114518,6.7172,134.05,133.99,2.65453742]
[1767509114917,6.7161,134.07,133.99,1.85787324]
[1767509115111,103.36788827,134.08,134.0,2.60692083]
[1767509115112,2.45355319,134.08,134.0,2.60692083]
[1767509115513,0.04833662,134.05,134.03,0.05189146]
[1767509120618,2.45355319,134.08,134.03,0.05189146]
[1767509120821,9.16825319,134.1,134.03,2.65881229]
[1767509121309,6.715,134.09,134.03,2.65881229]
[1767509121820,0.05603131,134.07,134.03,2.65881229]
[1767509122725,0.05603131,134.07,134.03,3.81328135]
[1767509123519,2.45355319,134.1,134.03,3.81328135]
[1767509123815,2.45355319,134.09,134.03,0.05189146]
[1767509124015,3.60802225,134.08,134.03,0.05189146]
[1767509124417,6.76633779,134.07,134.03,0.05189146]
[1767509126220,2.45355319,134.05,134.0,88.18]
[1767509126417,2.45355319,134.04,133.96,2.60692083]
[1767509126624,2.45355319,134.04,133.97,2.60692083]
[1767509127324,0.04990557,134.02,133.99,0.05562031]
[1767509128120,2.50345876,134.02,133.94,2.60692083]
[1767509128320,2.45355319,134.02,133.96,2.60692083]
[1767509128528,2.45355319,134.04,133.96,2.60692083]
[1767509128825,6.7186,134.02,133.96,2.60692083]
[1767509129220,0.05436622,134.0,133.98,0.05331938]
[1767509130325,6.7186,134.02,133.98,0.05331938]
[1767509131029,2.45355319,134.04,133.98,0.05331938]
[1767509131325,2.42424679,134.06,133.99,2.58802435]
[1767509132129,2.42424679,134.06,133.99,3.74249341]
[1767509132332,0.04982414,134.04,134.01,0.05096238]
[1767509134429,9.37353239,134.08,134.01,2.56759356]
[1767509134628,9.37353239,134.08,134.01,2.51663118]
[1767509134932,104.4417,134.11,133.99,10.39070024]
[1767509134933,2.65773239,134.06,133.99,10.39070024]
[1767509135525,0.0551599,134.04,134.01,0.052222]
[1767509142332,6.7155,134.08,134.01,2.56885318]
[1767509142638,5.67005995,134.07,134.01,2.56885318]
[1767509142828,6.7155,134.08,134.01,2.56885318]
[1767509143134,5.67009522,134.07,134.01,2.56885318]
[1767509143335,0.04920573,134.05,134.01,2.56885318]
[1767509143537,0.04920573,134.05,134.02,2.51663118]
[1767509148945,2.65773239,133.98,133.89,2.51663118]
[1767509149238,3.81220145,133.98,133.89,2.51663118]
[1767509149746,3.81220145,133.96,133.89,2.51663118]
[1767509149948,0.04958773,133.95,133.92,0.05176698]
[1767509150836,1.15446906,133.98,133.92,2.56839816]
[1767509151041,9.37783239,133.99,133.92,2.56839816]
[1767509151746,0.05679973,133.97,133.92,2.56839816]
[1767509153441,104.4981,134.04,133.92,2.56839816]
[1767509153442,2.65773239,134.05,133.95,2.51663118]
[1767509153626,3.81220145,134.05,133.97,2.51663118]
[1767509154028,3.81220145,134.01,133.94,2.51663118]
[1767509154436,0.05639799,133.99,133.96,0.05181452]
[1767509154633,1.21086705,133.99,133.96,0.05181452]
[1767509154841,3.86859944,133.99,133.91,2.51663118]
[1767509155940,2.71413038,133.99,133.94,0.05735891]
[1767509156244,3.86859944,133.99,133.94,0.05735891]
[1767509157948,0.05639799,133.99,133.94,0.05735891]
[1767509158553,0.05639799,133.99,133.87,2.51663118]
[1767509158554,2.65773239,133.95,133.87,2.51663118]
[1767509158745,1.15446906,133.94,133.87,2.51663118]
[1767509159638,2.65773239,133.95,133.87,3.67110024]
[1767509160450,2.65773239,133.95,133.88,2.63419909]
[1767509160844,2.63722726,133.98,133.9,2.63419909]
[1767509161157,3.79169632,134.01,133.92,2.63419909]
[1767509161359,10.51129632,134.0,133.95,0.05208543]
[1767509162452,0.05314666,133.99,133.95,0.05208543]
[1767509165154,9.41047392,133.99,133.92,2.63419909]
[1767509166053,9.41047392,133.99,133.94,0.05697501]
[1767509170848,2.69037392,133.99,133.94,0.05697501]
[1767509171049,0.05314666,133.99,133.94,2.6911741]
[1767509171254,2.63722726,134.03,133.94,2.6911741]
[1767509171457,6.7171,134.05,133.96,2.63419909]
[1767509171759,6.7171,134.05,133.97,2.63419909]
[1767509171954,9.35432726,134.05,133.97,2.63419909]
[1767509172349,0.05544806,134.02,134.0,0.05564271]
[1767509175465,9.35432726,134.05,134.0,0.05564271]
[1767509176566,0.05208033,134.04,134.0,0.05564271]
[1767509178165,9.40700759,134.04,134.0,0.05564271]
[1767509178364,2.68930759,134.04,133.96,90.83419909]
[1767509178866,2.68930759,134.04,133.97,2.63419909]
[1767509179269,9.40700759,134.04,133.97,2.63419909]
[1767509179467,9.40700759,134.04,133.99,0.04756804]
[1767509181269,0.05208033,134.04,133.99,2.68176713]
[1767509181471,2.63722726,134.09,133.99,2.68176713]
[1767509181774,2.63722726,134.08,133.99,2.63419909]
[1767509182374,0.04786489,134.05,134.02,0.04814334]
[1767509183077,0.04786489,134.05,133.98,90.81419909]
[1767509183269,2.63722726,134.06,133.98,90.81419909]
[1767509183876,6.7171,134.05,133.99,2.63419909]
[1767509184178,0.05168526,134.03,134.01,0.05606494]
[1767509186477,6.7162,134.07,134.01,0.05606494]
[1767509186682,9.35342726,134.07,134.01,0.05606494]
[1767509187979,0.04842064,134.05,134.01,0.05606494]
[1767509191583,0.04842064,134.05,134.01,2.61063048]
[1767509196187,0.04842064,134.05,134.01,0.05606494]
[1767509198093,0.04842064,134.05,134.01,2.75363188]
[1767509198294,6.7157,134.08,134.01,2.75363188]
[1767509198792,9.23851781,134.08,134.01,2.75363188]
[1767509198993,6.7162,134.07,134.01,2.75363188]
[1767509199287,0.05600554,134.05,134.01,2.75363188]
[1767509227022,6.77290554,134.05,134.01,0.05606494]
[1767509227212,5.70894861,134.04,133.99,90.66095129]
[1767509227521,9.4650166,134.05,133.99,90.66095129]
[1767509227825,5.70849097,134.04,133.99,90.66095129]
[1767509228025,9.4650166,134.05,133.99,90.66095129]
[1767509228225,5.70819984,134.04,134.01,0.0473367]
[1767509228416,9.4650166,134.05,134.01,0.0473367]
[1767509228616,5.7078059,134.04,134.01,0.0473367]
[1767509228812,9.4650166,134.05,134.01,0.0473367]
[1767509229016,5.70827493,134.04,134.01,0.0473367]
[1767509229221,9.4650166,134.05,134.01,0.0473367]
[1767509229412,5.70784361,134.04,134.01,0.0473367]
[1767509229624,9.4650166,134.05,134.01,0.0473367]
[1767509229828,5.70784597,134.04,134.01,0.0473367]
[1767509230023,2.69211106,134.02,133.95,2.50095129]
[1767509230326,2.69211106,134.02,133.95,90.66095129]
[1767509230529,5.70355234,134.01,133.95,90.66095129]
[1767509230712,2.69211106,134.02,133.95,90.66095129]
[1767509230913,5.70344055,134.01,133.95,90.66095129]
[1767509231224,0.04720675,133.99,133.97,0.05681046]
[1767509232225,0.04720675,133.99,133.92,1.80529187]
[1767509232226,2.69211106,133.98,133.92,2.50095129]
[1767509233127,9.41271106,133.98,133.94,0.04880189]
[1767509233318,2.69211106,133.97,133.9,2.50095129]
[1767509234523,0.04998685,133.95,133.92,0.05060276]
[1767509242332,2.74209791,133.95,133.92,0.05060276]
[1767509244729,9.46419791,133.95,133.89,88.16]
[1767509245934,9.46419791,133.95,133.91,0.05552204]
[1767509254537,2.74209791,133.95,133.91,0.05552204]
[1767509255839,0.04998685,133.95,133.91,2.74029356]
[1767509259648,6.77198685,133.95,133.91,0.05552204]
[1767509260446,6.7232,133.93,133.87,2.68477152]
[1767509260646,6.7232,133.93,133.88,2.68477152]
[1767509261240,2.57313764,133.94,133.89,1.15707374]
[1767509261449,0.05552809,133.93,133.9,0.0552369]
[1767509262256,0.05552809,133.93,133.9,2.74000842]
[1767509262433,6.7225,133.94,133.9,2.74000842]
[1767509263437,0.05360733,133.93,133.9,2.74000842]
[1767509264948,2.57313764,133.99,133.91,3.84184526]
[1767509265144,6.7208,133.98,133.93,1.15707374]
[1767509265939,1.15707374,134.01,133.86,192.8499]
[1767509265940,9.34776233,133.97,133.94,0.05572881]
[1767509266140,2.57313764,133.97,133.91,3.84184526]
[1767509266545,6.7203,133.99,133.92,2.68477152]
[1767509266741,9.29343764,133.99,133.92,2.68477152]
[1767509267245,0.0519462,133.97,133.94,0.04789119]
[1767509268650,2.57313764,133.99,133.95,1.15707374]
[1767509269544,0.05264554,133.98,133.94,0.04789119]
[1767509269747,0.05264554,133.98,133.94,1.20496493]
[1767509275265,9.29233764,134.01,133.95,2.68477152]
[1767509275465,9.29233764,134.01,133.96,1.15707374]
[1767509275466,2.57313764,134.01,133.96,1.15707374]
[1767509276465,0.05459338,134.0,133.97,0.05011635]
[1767509278865,6.77409338,134.0,133.97,0.05011635]
[1767509279260,0.05459338,134.0,133.97,0.05011635]
[1767509279463,0.05459338,134.0,133.97,2.73488787]
[1767509279663,2.57313764,134.04,133.97,2.73488787]
[1767509280172,8.18257593,134.03,133.97,2.73488787]
[1767509280472,2.50442399,134.03,133.97,0.05011635]
[1767509280658,6.77499125,134.01,133.97,0.05011635]
[1767509280959,9.27941524,134.01,133.97,0.05011635]
[1767509283058,9.22392399,134.0,133.97,0.05011635]
[1767509283261,2.50442399,134.0,133.93,3.78723802]
[1767509284162,9.2796845,133.98,133.91,1.15707374]
[1767509284363,9.22502399,133.98,133.91,1.15707374]
[1767509285366,0.04904961,133.96,133.93,0.05221328]
[1767509287868,9.2751736,133.96,133.93,0.05221328]
[1767509288073,2.50442399,133.95,133.89,2.63016428]
[1767509288573,9.22652399,133.95,133.89,2.63016428]
[1767509289065,9.22652399,133.95,133.91,0.05642362]
[1767509291367,0.04904961,133.96,133.91,0.05642362]
[1767509291565,2.50442399,133.93,133.86,2.63016428]
[1767509292671,0.05678972,133.91,133.88,0.05573873]
[1767509295672,6.7228,133.94,133.88,2.68590301]
[1767509296778,0.04723704,133.92,133.88,2.68590301]
[1767509299680,6.7221,133.95,133.89,2.63016428]
[1767509300680,0.05283297,133.93,133.89,2.63016428]
[1767509315491,0.05283297,133.93,133.88,0.05573873]
[1767509315793,0.05283297,133.93,133.88,2.67912211]
[1767509316391,2.55931185,133.93,133.88,0.05573873]
[1767509318391,6.7235,133.92,133.88,0.05573873]
[1767509318581,9.22997888,133.92,133.88,0.05573873]
[1767509318981,2.50647888,133.91,133.88,0.05573873]
[1767509322991,9.23047888,133.91,133.88,0.05573873]
[1767509332196,2.50647888,133.9,133.83,99.39883669]
[1767509332699,2.50647888,133.9,133.84,2.62338338]
[1767509333202,0.05413728,133.88,133.86,0.05077051]
[1767509339212,0.05413728,133.88,133.86,2.67415389]
[1767509342206,2.62469447,133.93,133.86,2.67415389]
[1767509342407,2.62469447,133.96,133.86,2.62338338]
[1767509342620,2.62469447,133.93,133.86,2.62338338]
[1767509343113,2.62469447,133.92,133.86,2.62338338]
[1767509343408,0.05075149,133.9,133.88,0.05246858]
[1767509343915,0.05075149,133.9,133.84,2.53845489]
[1767509344818,0.05075149,133.9,133.86,0.05407394]
[1767509348714,0.05075149,133.9,133.86,2.59252883]
[1767509360525,6.77535149,133.9,133.86,2.59252883]
[1767509362714,0.05075149,133.9,133.86,2.59252883]
[1767509371529,2.59955629,133.9,133.86,0.05407394]
[1767509372327,0.05075149,133.9,133.86,0.05407394]
[1767509373338,6.7235,133.92,133.87,2.68892704]
[1767509374429,0.05565195,133.91,133.87,2.68892704]
[1767509374634,0.05565195,133.91,133.88,0.05733775]
[1767509377332,4.08881117,133.91,133.84,2.68892704]
[1767509377536,4.08881117,133.91,133.78,20.09857607]
[1767509377537,2.53315922,133.87,133.78,19.95646075]
[1767509377736,2.53315922,133.85,133.78,18.79878336]
[1767509377937,3.69083661,133.84,133.78,18.79878336]
[1767509378538,0.05415001,133.82,133.8,0.05359997]
[1767509379340,2.53315922,133.86,133.8,3.9002044]
[1767509380136,2.53315922,133.86,133.8,0.05359997]
[1767509380445,2.58094955,133.84,133.8,0.05359997]
[1767509381042,9.26125922,133.83,133.78,18.79878336]
[1767509381840,2.53315922,133.79,133.7,6.7341]
[1767509382150,2.53315922,133.79,133.73,0.0544002]
[1767509382342,0.05155132,133.76,133.73,0.0544002]
[1767509382641,2.53315922,133.75,133.67,5.14787953]
[1767509382947,2.53315922,133.75,133.67,2.68892704]
[1767509383533,0.05192231,133.72,133.7,0.05284849]
[1767509383738,2.53315922,133.75,133.7,0.05284849]
[1767509384345,2.53315922,133.78,133.71,1.15767739]
[1767509384545,2.53315922,133.78,133.7,2.68892704]
[1767509384744,2.53315922,133.78,133.71,1.15767739]
[1767509384936,0.0512233,133.75,133.73,0.05618462]
[1767509385135,2.53315922,133.78,133.73,0.05618462]
[1767509385339,2.53315922,133.8,133.73,0.05618462]
[1767509385535,2.53315922,133.8,133.73,3.84660443]
[1767509385940,2.53315922,133.8,133.74,1.15767739]
[1767509386143,2.53315922,133.83,133.76,1.15767739]
[1767509386843,2.53315922,133.85,133.78,1.15767739]
[1767509387439,0.04954596,133.83,133.8,0.05677578]
[1767509388643,2.53315922,133.81,133.74,2.68892704]
[1767509389840,0.05140355,133.79,133.76,0.05153447]
[1767509390951,2.53315922,133.83,133.76,2.74046151]
[1767509392240,0.04883912,133.81,133.76,2.74046151]
[1767509399153,0.04883912,133.81,133.76,0.05153447]
[1767509399348,2.58199834,133.81,133.76,0.05153447]
[1767509403556,2.58199834,133.81,133.76,2.74699877]
[1767509403557,0.04883912,133.81,133.76,2.74699877]
[1767509403750,0.04883912,133.81,133.76,3.90467616]
[1767509404058,10.3749525,133.84,133.76,3.90467616]
[1767509404059,2.48977511,133.86,133.78,3.85314169]
[1767509404856,192.9433,133.88,133.81,2.6954643]
[1767509404857,2.48977511,133.88,133.81,2.6954643]
[1767509405049,2.48977511,133.88,133.82,1.15767739]
[1767509406050,0.04819786,133.86,133.82,1.15767739]
[1767509408061,0.04819786,133.86,133.82,3.85314169]
[1767509412961,9.21437511,133.9,133.82,3.85314169]
[1767509413165,9.21437511,133.9,133.83,2.6954643]
[1767509413958,9.21437511,133.9,133.85,0.05545076]
[1767509414165,0.05347001,133.88,133.85,0.05545076]
[1767509417265,2.54324512,133.88,133.82,2.6954643]
[1767509418459,2.54324512,133.88,133.84,0.05610734]
[1767509418860,9.26874512,133.88,133.84,0.05610734]
[1767509420562,10.42642251,133.88,133.84,0.05610734]
[1767509420765,9.26874512,133.88,133.84,0.05610734]
[1767509423972,2.54324512,133.88,133.84,0.05610734]
[1767509426868,0.05347001,133.88,133.84,2.75157164]
[1767509429072,0.05347001,133.88,133.84,0.05610734]
[1767509434475,0.05347001,133.88,133.84,2.580084]
[1767509438372,2.59918002,133.92,133.84,2.580084]
[1767509438669,2.59918002,133.92,133.85,3.81663564]
[1767509439484,2.59918002,133.92,133.87,0.04997194]
[1767509439875,9.32268002,133.92,133.87,0.04997194]
[1767509441482,10.614539,133.94,133.87,2.5739486]
[1767509441884,2.59918002,133.93,133.87,2.5739486]
[1767509443375,2.59918002,133.94,133.87,2.5739486]
[1767509443779,9.32168002,133.94,133.87,2.5739486]
[1767509443985,2.59918002,133.94,133.87,3.86660758]
[1767509444983,3.891839,133.96,133.88,2.52397666]
[1767509445384,2.59918002,133.95,133.91,0.04983187]
[1767509445788,9.32128002,133.95,133.91,0.04983187]
[1767509447988,2.59918002,133.94,133.91,0.04983187]
[1767509448389,2.64837304,133.94,133.91,0.04983187]
[1767509449893,2.59918002,133.93,133.86,97.50997666]
[1767509450599,2.59918002,133.93,133.86,9.24997666]
[1767509450805,0.05120588,133.91,133.88,0.04785329]
[1767509452601,2.59918002,133.89,133.82,2.52397666]
[1767509453604,2.59918002,133.87,133.8,9.25297666]
[1767509453807,2.64936909,133.87,133.84,0.05518087]
[1767509460306,2.64936909,133.87,133.79,2.74148173]
[1767509461503,2.64936909,133.87,133.82,0.05320825]
[1767509461698,9.37536909,133.87,133.82,0.05320825]
[1767509462101,2.48257472,133.86,133.82,0.05320825]
[1767509463598,0.05018907,133.87,133.82,2.79468998]
[1767509464896,2.53276379,133.87,133.79,2.74148173]
[1767509465098,2.48257472,133.87,133.79,2.74148173]
[1767509466002,2.48257472,133.87,133.82,0.05679927]
[1767509467001,0.04896647,133.86,133.82,0.05679927]